bitfinex-derivatives/quotes_ETHF0:USTF0_20220103
["timestamp","ask_amount","ask_price","bid_price","bid_amount"]
[1641232751882,2.58096448,3761.3,3760.8,0.89730804]
[1641232752282,0.57617448,3761.3,3760.8,0.89730804]
[1641232753084,0.57617448,3761.3,3760.9,0.89730804]
[1641232753085,1.1864402,3761.0,3760.9,0.89730804]
[1641232753282,1.4164312,3761.0,3760.9,0.89730804]
[1641232753685,0.229991,3761.0,3760.9,0.89730804]
[1641232753984,1.53262368,3761.1,3760.9,0.89730804]
[1641232754184,0.229991,3761.0,3760.9,0.89730804]
[1641232754684,1.89077168,3761.0,3760.8,0.89730804]
[1641232754884,1.89077168,3761.0,3759.4,2.94969893]
[1641232755083,0.9255365,3760.8,3759.4,2.94969893]
[1641232755486,2.00479,3760.3,3759.4,4.95448893]
[1641232755688,31.33069739,3759.8,3759.5,0.128157]
[1641232755886,0.229991,3759.7,3759.5,0.128157]
[1641232756085,31.33069739,3759.8,3759.5,0.128157]
[1641232756686,0.229991,3759.7,3759.5,0.128157]
[1641232756885,0.229991,3759.7,3759.6,1.23875375]
[1641232759487,31.33069739,3759.8,3759.6,1.23875375]
[1641232760088,31.56068839,3759.8,3759.6,1.23875375]
[1641232764990,0.128157,3760.0,3759.6,1.23875375]
[1641232765190,1.18327977,3760.2,3759.6,2.73875375]
[1641232765390,1.18327977,3760.2,3759.6,1.23875375]
[1641232765791,1.18327977,3760.2,3759.7,1.49820104]
[1641232765995,2.00479,3760.3,3759.7,1.49820104]
[1641232766994,2.00479,3760.3,3759.8,1.49820104]
[1641232772605,2.00479,3760.3,3759.6,1.23875375]
[1641232772606,2.00479,3760.3,3759.7,1.49820104]
[1641232775109,2.00479,3760.3,3759.8,1.49820104]
[1641232777115,2.00479,3760.3,3760.1,0.8978649]
[1641232777312,3.18806977,3760.7,3760.2,1.33811781]
[1641232778414,2.00479,3760.7,3760.3,0.8978649]
[1641232780716,2.00479,3760.7,3760.2,2.23598271]
[1641232780717,0.34515257,3760.6,3760.2,2.23598271]
[1641232781916,0.34515257,3760.6,3760.2,2.10782571]
[1641232783015,0.34515257,3760.6,3760.2,1.20996081]
[1641232783215,1.52843234,3760.6,3760.2,1.20996081]
[1641232784018,1.18327977,3760.5,3760.2,1.20996081]
[1641232784216,0.229991,3760.4,3760.2,1.20996081]
[1641232786019,2.00479,3760.3,3760.2,1.20996081]
[1641232786419,2.34994257,3760.3,3760.2,1.20996081]
[1641232786621,2.57993357,3760.3,3760.2,1.20996081]
[1641232786821,2.34994257,3760.3,3760.2,1.20996081]
[1641232787621,2.57993357,3760.3,3760.2,1.20996081]
[1641232788125,2.34994257,3760.3,3760.2,1.20996081]
[1641232788521,2.57993357,3760.3,3760.2,1.20996081]
[1641232788922,3.76575578,3760.3,3760.2,1.20996081]
[1641232791524,2.57993357,3760.3,3760.2,1.20996081]
[1641232792927,3.76575578,3760.3,3760.2,1.20996081]
[1641232797933,2.57993357,3760.3,3760.2,1.20996081]
[1641232800635,2.57993357,3760.3,3760.0,0.8978649]
[1641232801036,2.57993357,3760.3,3759.9,0.8978649]
[1641232801734,2.57993357,3760.3,3760.0,0.87876929]
[1641232802135,1.18582221,3760.1,3760.0,0.87876929]
[1641232802335,1.41581321,3760.1,3760.0,0.87876929]
[1641232802936,0.229991,3760.1,3760.0,0.87876929]
[1641232803339,0.57514357,3760.1,3760.0,0.87876929]
[1641232803538,2.07514357,3760.1,3758.8,6.92720104]
[1641232803840,1.5,3759.9,3758.8,6.92720104]
[1641232804137,1.5,3759.9,3758.8,5.429]
[1641232804337,2.00479,3759.0,3758.7,1.49820104]
[1641232804539,0.229991,3758.9,3758.7,2.88357265]
[1641232804738,2.00479,3759.0,3758.7,2.88357265]
[1641232805741,2.00479,3759.0,3758.7,1.38537161]
[1641232805940,0.229991,3758.9,3758.7,1.38537161]
[1641232806541,0.229991,3758.9,3758.7,1.25721461]
[1641232806941,2.00479,3759.0,3758.7,1.25721461]
[1641232807143,2.00479,3759.0,3758.7,3.57901565]
[1641232807342,2.00479,3759.3,3758.9,1.5]
[1641232807542,1.18472188,3759.8,3759.2,1.5]
[1641232807742,1.18472188,3759.8,3758.9,1.32931172]
[1641232807743,1.18472188,3759.8,3759.6,1.5]
[1641232807945,1.18472188,3759.8,3759.6,2.2667]
[1641232808142,1.48090235,3760.1,3759.6,2.2667]
[1641232808343,1.48090235,3760.1,3759.6,4.27149]
[1641232808543,1.18493196,3760.1,3759.6,4.27149]
[1641232808943,1.18493196,3760.1,3759.7,0.128157]
[1641232809448,1.18493196,3760.1,3759.7,1.25935647]
[1641232809844,1.48090235,3760.4,3759.7,1.25935647]
[1641232810044,0.3436119,3760.4,3759.7,1.25935647]
[1641232810449,0.128157,3760.3,3759.7,1.13119947]
[1641232810945,0.128157,3760.3,3759.8,0.128157]
[1641232811546,0.3436119,3760.4,3759.8,0.128157]
[1641232811946,0.3436119,3760.4,3759.8,1.628157]
[1641232812347,0.3436119,3760.2,3759.8,3.12635804]
[1641232812746,0.3436119,3760.2,3760.1,1.5]
[1641232812949,2.00479,3760.5,3760.1,1.5]
[1641232813149,30.6459,3761.9,3760.4,1.5]
[1641232813150,1.48090235,3760.7,3760.4,1.5]
[1641232813350,2.53133198,3761.0,3760.4,2.1344]
[1641232813948,2.53133198,3761.0,3760.5,1.15660476]
[1641232814249,2.53133198,3761.0,3760.9,1.32865117]
[1641232814448,2.76132298,3761.0,3760.9,1.32865117]
[1641232814950,2.76132298,3761.0,3760.8,2.00479]
[1641232815351,0.229991,3761.0,3760.8,2.00479]
[1641232815554,0.229991,3760.9,3760.8,2.00479]
[1641232815755,0.128157,3761.3,3760.8,2.00479]
[1641232820662,1.18904246,3760.9,3760.8,2.00479]
[1641232821060,1.41903346,3760.9,3760.8,2.00479]
[1641232821261,1.18904246,3760.9,3760.8,2.00479]
[1641232821661,1.18904246,3761.0,3760.8,2.00479]
[1641232822461,0.229991,3760.9,3760.8,2.00479]
[1641232822861,1.18904246,3761.0,3760.8,2.00479]
[1641232824163,1.18904246,3761.0,3760.8,2.60719]
[1641232824164,1.41903346,3761.0,3760.8,2.60719]
[1641232824363,1.18904246,3761.0,3760.8,2.60719]
[1641232825566,0.229991,3760.9,3760.8,2.00479]
[1641232825965,1.18904246,3761.0,3760.8,2.00479]
[1641232826367,0.128157,3761.1,3760.8,2.00479]
[1641232826567,1.61437999,3761.1,3760.8,2.00479]
[1641232827368,0.229991,3761.0,3760.8,2.00479]
[1641232827567,1.48622299,3760.9,3760.8,2.00479]
[1641232828769,1.48622299,3760.9,3760.8,2.90420407]
[1641232831171,1.48622299,3760.9,3760.8,0.89941407]
[1641232831472,1.71621399,3761.0,3760.8,0.89941407]
[1641232831773,1.48622299,3761.0,3760.8,0.89941407]
[1641232832272,0.229991,3760.9,3760.8,0.89941407]
[1641232832474,1.48622299,3761.0,3760.8,0.89941407]
[1641232833377,1.71621399,3761.0,3760.8,0.89941407]
[1641232833979,1.48622299,3760.9,3760.7,0.89941407]
[1641232836183,1.48622299,3761.0,3760.8,0.89941407]
[1641232837182,0.229991,3761.0,3760.6,1.02757107]
[1641232837383,1.19205648,3761.0,3760.6,1.02757107]
[1641232839387,1.19205648,3761.1,3760.6,1.02757107]
[1641232840289,1.19205648,3761.0,3760.6,0.128157]
[1641232841789,1.19205648,3761.1,3760.6,1.02757107]
[1641232843491,0.31477146,3760.9,3760.6,1.02757107]
[1641232843896,0.229991,3760.8,3760.6,1.02757107]
[1641232844094,1.19205648,3761.0,3760.6,1.02757107]
[1641232847502,1.19205648,3761.1,3760.6,1.02757107]
[1641232848803,1.19205648,3761.1,3760.6,2.52757107]
[1641232849606,1.19205648,3761.1,3760.6,3.85631404]
[1641232849905,1.19205648,3761.1,3760.9,0.89941407]
[1641232850106,1.19205648,3761.1,3760.9,1.49051407]
[1641232850309,2.09621632,3761.6,3760.9,1.49051407]
[1641232850507,1.19491551,3761.4,3760.9,1.49051407]
[1641232850716,1.19491551,3761.4,3761.2,2.00479]
[1641232850917,1.19491551,3761.4,3761.2,2.8571066]
[1641232851517,0.31475824,3761.6,3761.2,2.8571066]
[1641232852523,1.48622299,3761.8,3761.3,1.5]
[1641232852719,1.48622299,3761.8,3761.6,2.00479]
[1641232852920,1.78145808,3762.1,3761.6,2.00479]
[1641232853120,1.78145808,3762.1,3761.7,1.5]
[1641232853321,1.78145808,3762.1,3761.7,2.1105]
[1641232854422,1.78145808,3762.1,3761.7,0.6105]
[1641232854923,1.78145808,3762.1,3762.0,2.00479]
[1641232855124,1.78145808,3762.7,3762.0,3.06214331]
[1641232856224,3.78624808,3762.9,3762.0,3.06214331]
[1641232857425,2.00479,3762.9,3762.0,3.96155738]
[1641232860625,2.00479,3762.9,3762.1,0.89941407]
[1641232860827,2.00479,3762.9,3762.2,0.128157]
[1641232861225,2.132947,3762.9,3762.2,0.128157]
[1641232861424,2.132947,3762.9,3762.1,0.89941407]
[1641232862629,2.132947,3762.9,3762.0,3.06214331]
[1641232862630,1.19555987,3762.6,3762.2,0.89941407]
[1641232863126,1.19555987,3762.6,3762.3,0.128157]
[1641232863527,1.19555987,3762.5,3762.3,0.128157]
[1641232864127,0.229991,3762.4,3762.3,0.128157]
[1641232864329,1.19555987,3762.5,3762.3,0.128157]
[1641232865029,0.229991,3762.4,3762.3,0.128157]
[1641232865330,1.19555987,3762.5,3762.3,0.128157]
[1641232866330,2.00479,3762.9,3762.3,0.128157]
[1641232867130,2.00479,3762.9,3762.4,2.00479]
[1641232878142,0.128157,3762.8,3762.4,2.00479]
[1641232878743,2.00479,3762.9,3762.4,2.00479]
[1641232879846,1.5,3762.6,3762.4,2.00479]
[1641232880046,0.229991,3762.5,3762.4,2.00479]
[1641232880247,0.358148,3762.5,3762.4,2.00479]
[1641232881251,0.358148,3762.5,3762.0,3.06214331]
[1641232881449,0.358148,3762.5,3762.0,3.19030031]
[1641232881651,0.358148,3762.5,3762.0,3.06214331]
[1641232882048,1.858148,3762.5,3762.0,3.06214331]
[1641232882451,0.358148,3762.5,3762.0,3.06214331]
[1641232884352,1.5,3762.3,3762.0,3.06214331]
[1641232884552,0.229991,3762.2,3762.0,3.06214331]
[1641232885252,2.234781,3762.2,3762.0,1.05735331]
[1641232886555,2.234781,3762.2,3761.5,1e-08]
[1641232886556,1.5,3762.1,3761.5,1e-08]
[1641232886756,2.00479,3762.2,3760.9,31.70259]
[1641232886956,3.50479,3762.2,3760.9,31.70259]
[1641232887358,2.00479,3761.4,3760.9,29.6978]
[1641232887561,2.63269,3761.4,3761.0,0.97312652]
[1641232890062,2.00479,3761.4,3761.0,0.97312652]
[1641232890258,2.00479,3761.4,3761.0,1.48462652]
[1641232891161,2.00479,3761.4,3761.1,1.32856997]
[1641232891966,2.00479,3761.4,3761.1,2.22798404]
[1641232894663,2.00479,3761.4,3761.1,1.32856997]
[1641232898872,0.229991,3761.3,3761.1,1.32856997]
[1641232899072,2.00479,3761.4,3761.1,1.32856997]
[1641232899473,2.00479,3761.4,3761.1,2.16426997]
[1641232901476,29.96608608,3762.3,3761.1,2.16426997]
[1641232901773,2.00479,3761.3,3761.1,2.16426997]
[1641232902976,2.00479,3761.7,3761.2,2.8283776]
[1641232903178,1.19555987,3762.3,3761.5,1.5]
[1641232903376,1.19555987,3762.3,3762.1,1.3282435]
[1641232903575,1.49444983,3762.6,3762.1,1.9938435]
[1641232903576,1.19555987,3762.4,3762.1,1.9938435]
[1641232903776,1.19555987,3762.4,3762.2,1.5]
[1641232903977,1.19555987,3762.4,3762.3,1.32808474]
[1641232904478,3.78624808,3762.9,3762.3,1.32808474]
[1641232904677,3.78624808,3762.9,3762.4,1.5]
[1641232904880,3.19945723,3762.9,3762.4,1.5]
[1641232905279,3.19945723,3762.9,3762.5,1.00526325]
[1641232905477,3.19945723,3762.9,3762.6,0.128157]
[1641232905877,2.00479,3762.9,3762.6,0.128157]
[1641232907777,2.00479,3763.5,3762.6,0.128157]
[1641232907981,2.00479,3763.5,3762.8,2.00479]
[1641232909883,2.00479,3764.1,3763.2,1.3278308]
[1641232910787,0.26059235,3764.0,3763.2,1.3278308]
[1641232910982,0.26059235,3764.0,3763.2,2.34940186]
[1641232911182,0.128157,3763.9,3763.2,2.34940186]
[1641232912483,0.128157,3763.9,3763.2,1.02157106]
[1641232912682,0.26059235,3764.0,3763.2,1.02157106]
[1641232913082,0.128157,3763.9,3763.2,1.02157106]
[1641232913286,0.26059235,3763.8,3763.2,1.02157106]
[1641232915486,1.45520064,3764.0,3763.2,1.02157106]
[1641232917487,0.26059235,3764.0,3763.2,1.02157106]
[1641232918689,2.00479,3764.1,3763.2,1.02157106]
[1641232920389,0.128157,3764.0,3763.2,1.02157106]
[1641232921289,2.00479,3764.1,3763.2,1.02157106]
[1641232922390,0.128157,3764.0,3763.2,1.02157106]
[1641232922790,2.00479,3764.1,3763.2,1.02157106]
[1641232925295,0.128157,3764.0,3763.2,1.02157106]
[1641232925497,0.766857,3764.0,3763.2,1.02157106]
[1641232927498,2.00479,3764.1,3763.2,1.02157106]
[1641232927698,0.128157,3764.0,3763.2,1.70707106]
[1641232931905,0.128157,3764.0,3763.2,1.02157106]
[1641232933108,2.00479,3764.1,3763.2,1.02157106]
[1641232933910,0.128157,3764.0,3763.2,1.02157106]
[1641232938116,2.00479,3764.1,3763.2,1.02157106]
[1641232938520,0.128157,3764.0,3763.2,1.02157106]
[1641232938718,0.869557,3764.0,3763.2,1.02157106]
[1641232939719,1.5,3763.9,3763.2,1.02157106]
[1641232940220,0.869557,3764.0,3763.2,1.02157106]
[1641232940221,1.5,3763.4,3763.2,1.02157106]
[1641232940424,0.229991,3763.3,3763.2,1.02157106]
[1641232941526,0.229991,3763.3,3762.8,4.00958]
[1641232941727,0.128157,3763.2,3762.8,4.00958]
[1641232941928,0.706257,3763.2,3762.8,4.00958]
[1641232943128,0.706257,3763.2,3762.9,0.98536789]
[1641232943327,0.229991,3763.1,3762.9,0.98536789]
[1641232944628,0.706257,3763.2,3762.9,0.98536789]
[1641232944929,0.229991,3763.1,3762.9,0.98536789]
[1641232945329,0.5781,3763.2,3762.9,0.98536789]
[1641232945528,0.5583,3764.2,3762.9,0.98536789]
[1641232946730,1.5,3764.0,3762.9,0.98536789]
[1641232947936,0.5583,3764.2,3762.9,0.98536789]
[1641232948133,1.5,3764.0,3762.9,0.98536789]
[1641232948933,2.0583,3764.2,3762.9,0.98536789]
[1641232949934,0.5583,3764.2,3762.9,0.98536789]
[1641232950135,2.0583,3764.2,3762.9,0.98536789]
[1641232950835,2.51013504,3764.0,3763.4,0.89218844]
[1641232951036,1.78145808,3763.7,3763.5,0.76540515]
[1641232951235,0.229991,3763.6,3763.5,0.76540515]
[1641232951437,0.733691,3763.6,3763.5,0.76540515]
[1641232952236,0.5037,3763.6,3763.5,0.76540515]
[1641232952839,1.78145808,3763.7,3763.5,0.76540515]
[1641232953037,2.01144908,3763.7,3763.5,0.76540515]
[1641232953440,1.78145808,3763.7,3763.5,0.76540515]
[1641232953640,2.04676563,3763.6,3763.5,0.76540515]
[1641232954741,1.78145808,3763.6,3763.5,1.65759359]
[1641232954940,1.78145808,3763.8,3763.5,1.65759359]
[1641232955443,1.78145808,3763.8,3763.6,1.32770916]
[1641232955641,0.26530755,3764.0,3763.6,1.32770916]
[1641232955842,2.24482749,3764.1,3763.6,1.32770916]
[1641232956043,2.24482749,3764.1,3763.5,2.48519359]
[1641232956445,1.79317443,3763.9,3763.6,0.89218844]
[1641232957644,2.24482749,3764.1,3763.5,1.59300515]
[1641232957845,0.72802838,3764.3,3763.5,3.08509185]
[1641232958543,0.72802838,3764.3,3764.2,2.00479]
[1641232958746,0.72802838,3764.3,3764.2,3.25374478]
[1641232959146,0.95801938,3764.3,3764.2,3.25374478]
[1641232959347,0.72802838,3764.3,3764.2,3.25374478]
[1641232959747,2.24482749,3764.7,3764.2,3.25374478]
[1641232962354,2.24482749,3764.8,3764.2,4.15298382]
[1641232963556,2.97285587,3764.8,3764.2,4.15298382]
[1641232964557,1.7903917,3764.5,3764.2,4.15298382]
[1641232965157,1.7903917,3764.5,3764.2,5.4804568]
[1641232965357,1.7903917,3764.5,3764.2,4.15298382]
[1641232965559,1.7903917,3764.5,3764.2,5.4804568]
[1641232966760,1.7903917,3764.5,3764.2,4.58121776]
[1641232966960,1.19277671,3764.4,3764.2,4.58121776]
[1641232967859,0.229991,3764.3,3764.2,4.58121776]
[1641232968260,32.90707089,3765.3,3764.2,4.58121776]
[1641232968261,1.19277671,3765.0,3764.2,4.58121776]
[1641232968560,1.19277671,3765.0,3764.7,2.00479]
[1641232968762,0.229991,3764.9,3764.7,2.00479]
[1641232969161,1.19277671,3765.0,3764.7,2.00479]
[1641232969563,1.19277671,3765.0,3764.7,2.60529]
[1641232970965,32.60887671,3765.3,3764.7,2.60529]
[1641232971168,1.19277671,3765.3,3764.7,2.60529]
[1641232973867,1.19277671,3765.4,3764.7,2.60529]
[1641232974668,1.19277671,3765.4,3765.2,2.00479]
[1641232974867,1.19277671,3765.5,3765.3,0.128157]
[1641232975271,0.229991,3765.4,3765.3,0.128157]
[1641232975467,1.19277671,3765.5,3765.3,0.128157]
[1641232976468,1.19277671,3765.5,3765.4,1.32705724]
[1641232976668,1.18307681,3765.6,3765.4,3.33184724]
[1641232977871,1.18307681,3765.6,3765.4,2.00479]
[1641232978069,1.49097089,3765.9,3765.4,2.00479]
[1641232978472,1.7903917,3766.1,3765.8,1.32689172]
[1641232978670,1.49097089,3766.4,3765.8,1.32689172]
[1641232978671,1.49097089,3766.4,3766.0,2.00479]
[1641232978869,1.49097089,3766.4,3766.1,0.128157]
[1641232979776,1.49097089,3766.4,3766.1,1.02399026]
[1641232979972,1.7903917,3766.6,3766.1,1.02399026]
[1641232980172,1.7903917,3766.4,3766.1,1.02399026]
[1641232980375,0.229991,3766.3,3766.1,1.02399026]
[1641232980772,1.7903917,3766.4,3766.1,1.02399026]
[1641232981171,0.229991,3766.3,3766.1,1.02399026]
[1641232981372,1.7903917,3766.4,3766.1,1.02399026]
[1641232981773,1.7903917,3766.4,3766.2,0.89583326]
[1641232981980,1.7903917,3766.5,3766.2,0.89583326]
[1641232982172,3.2903917,3766.5,3765.6,1.4920867]
[1641232982373,3.9991917,3766.5,3765.6,1.4920867]
[1641232982573,1.7903917,3766.4,3765.5,1.4920867]
[1641232982774,1.7903917,3766.4,3765.8,2.00479]
[1641232983577,1.7903917,3766.4,3765.9,0.7723659]
[1641232984179,1.7903917,3766.1,3765.9,0.7723659]
[1641232984478,0.358148,3766.0,3765.9,0.7723659]
[1641232984978,0.128157,3766.0,3765.9,0.7723659]
[1641232985780,1.7903917,3766.1,3765.9,0.7723659]
[1641232986482,1.7903917,3766.3,3765.9,0.7723659]
[1641232988683,1.18935162,3766.0,3765.9,0.7723659]
[1641232990989,1.18935162,3766.1,3765.9,0.7723659]
[1641232991988,1.7903917,3766.7,3765.9,2.2723659]
[1641232992189,1.7903917,3766.7,3766.0,1.3267368]
[1641232992390,1.7903917,3766.7,3765.9,2.2723659]
[1641232992888,1.7903917,3766.7,3766.6,2.00479]
[1641232993088,1.7903917,3766.7,3766.6,2.7513318]
[1641232993289,0.128157,3767.0,3766.6,2.7513318]
[1641232995291,1.48503177,3766.8,3766.6,2.7513318]
[1641232997496,1.48503177,3767.0,3766.6,2.7513318]
[1641232999601,1.48503177,3766.9,3766.6,2.7513318]
[1641233001903,33.62802749,3767.5,3766.6,2.7513318]
[1641233001904,31.3832,3767.5,3766.6,2.7513318]
[1641233002102,0.128157,3767.4,3766.6,2.7513318]
[1641233003606,2.00479,3767.7,3766.6,2.7513318]
[1641233005105,1.5,3767.9,3767.2,2.00479]
[1641233005306,0.128157,3767.8,3767.2,3.0423591]
[1641233006507,0.128157,3767.8,3767.2,3.1705161]
[1641233006908,2.56309,3768.5,3767.2,4.6705161]
[1641233007107,2.00479,3768.5,3767.8,2.00479]
[1641233007908,2.00479,3768.5,3767.9,1.1341959]
[1641233008509,2.00479,3768.5,3768.0,0.128157]
[1641233009109,2.00479,3769.1,3768.0,0.128157]
[1641233011314,2.00479,3769.1,3768.2,1.32607176]
[1641233012214,2.00479,3769.1,3768.0,0.128157]
[1641233012615,2.00479,3769.1,3768.2,1.32607176]
[1641233012815,0.128157,3769.0,3768.2,1.32607176]
[1641233013016,2.00479,3769.1,3768.2,1.32607176]
[1641233013714,2.00479,3769.1,3768.0,0.128157]
[1641233016421,2.00479,3769.1,3768.2,1.32607176]
[1641233016618,0.128157,3769.0,3768.0,0.128157]
[1641233017419,2.00479,3769.1,3768.0,0.128157]
[1641233020021,2.00479,3769.1,3768.0,0.868757]
[1641233021325,2.00479,3769.1,3768.3,2.00479]
[1641233022023,2.132947,3769.1,3768.3,2.00479]
[1641233023024,1.5,3768.9,3768.3,2.00479]
[1641233023224,2.2863,3768.9,3768.3,4.00958]
[1641233024827,0.7863,3768.9,3768.3,4.00958]
[1641233027430,1.5,3768.4,3768.3,4.00958]
[1641233027630,1.858148,3768.4,3767.0,1.32650097]
[1641233027831,1.5,3767.9,3762.5,6.10004143]
[1641233028030,0.5307,3767.9,3762.5,6.10004143]
[1641233028431,0.5307,3767.9,3767.5,0.88900249]
[1641233029235,2.00479,3767.6,3767.5,1.01715949]
[1641233029631,2.00479,3767.6,3767.5,0.97951476]
[1641233030739,2.00479,3767.6,3767.5,2.30577647]
[1641233030935,2.00479,3767.6,3767.5,0.97951476]
[1641233032236,2.00479,3767.6,3767.5,0.85135776]
[1641233032839,2.234781,3767.6,3767.5,0.85135776]
[1641233033040,2.362938,3767.6,3767.5,0.85135776]
[1641233033239,2.00479,3767.6,3767.5,0.85135776]
[1641233034243,2.234781,3767.6,3767.5,0.85135776]
[1641233034546,2.00479,3767.6,3767.5,0.85135776]
[1641233037644,2.234781,3767.6,3767.5,0.85135776]
[1641233037846,2.00479,3767.6,3767.5,0.85135776]
[1641233039447,2.00479,3767.6,3767.5,3.06666417]
[1641233040447,2.00479,3767.6,3767.5,2.17766168]
[1641233040648,2.234781,3767.6,3767.5,2.17766168]
[1641233040950,2.00479,3767.6,3767.5,0.85135776]
[1641233041948,2.234781,3767.6,3767.5,0.85135776]
[1641233049657,2.00479,3767.6,3767.5,0.85135776]
[1641233049860,60.9258,3769.3,3767.5,1.40255776]
[1641233050257,1.17520861,3768.5,3768.1,1.32612804]
[1641233050761,1.17520861,3768.5,3768.2,0.84677845]
[1641233051357,3.17999861,3768.5,3768.3,1.32605066]
[1641233051559,3.17999861,3768.5,3768.3,2.03505066]
[1641233051758,3.17999861,3768.5,3768.4,0.128157]
[1641233051957,2.00479,3768.5,3768.4,1.45417601]
[1641233052360,2.00479,3768.9,3768.4,1.45417601]
[1641233052557,2.00479,3768.9,3768.4,0.128157]
[1641233052958,2.00479,3768.9,3768.8,1.32580453]
[1641233053158,2.00479,3768.9,3768.8,2.07010365]
[1641233053359,0.229991,3768.9,3768.8,2.07010365]
[1641233053558,0.358148,3768.9,3768.8,2.07010365]
[1641233053758,0.358148,3768.9,3768.8,0.74429912]
[1641233053956,3.50479,3769.5,3768.8,0.74429912]
[1641233054158,2.00479,3769.5,3768.8,0.74429912]
[1641233055661,0.29009389,3769.4,3768.8,0.74429912]
[1641233055861,2.61229389,3769.4,3768.8,0.74429912]
[1641233056062,1.11229389,3769.4,3768.8,0.74429912]
[1641233056662,0.16193689,3769.3,3768.8,0.74429912]
[1641233057765,3.17999861,3769.5,3768.8,0.74429912]
[1641233058166,2.00479,3769.5,3769.0,1.32578344]
[1641233058965,2.00479,3769.5,3768.8,0.74429912]
[1641233059369,3.50479,3768.9,3768.0,2.24036686]
[1641233059565,1.628157,3768.8,3768.0,2.24036686]
[1641233060566,0.128157,3768.8,3768.0,0.74828016]
[1641233060767,0.128157,3768.8,3767.3,1.32639892]
[1641233060966,1.5,3768.6,3767.3,1.32639892]
[1641233061368,2.00479,3768.1,3767.7,1.1242846]
[1641233061568,2.00479,3768.1,3767.8,0.128157]
[1641233061768,2.00479,3768.1,3767.8,1.6202437]
[1641233061968,3.17999861,3768.1,3767.8,1.6202437]
[1641233062770,0.229991,3768.0,3767.8,1.4920867]
[1641233063470,0.229991,3768.0,3767.9,1.4920867]
[1641233063668,2.00479,3768.1,3767.9,1.4920867]
[1641233063869,2.234781,3768.1,3767.9,1.4920867]
[1641233064369,0.15738349,3768.0,3767.8,1.4920867]
[1641233065374,0.15738349,3768.0,3767.9,1.4920867]
[1641233066771,2.00479,3768.1,3767.9,1.4920867]
[1641233067073,0.229991,3768.0,3767.9,1.4920867]
[1641233067272,2.00479,3768.1,3767.9,1.4920867]
[1641233067975,0.358148,3768.0,3767.9,1.4920867]
[1641233068575,1.69860609,3768.0,3767.7,2.6213339]
[1641233069575,0.52339748,3768.0,3767.7,1.1242846]
[1641233069974,0.16524948,3767.9,3767.7,1.1242846]
[1641233070479,0.229991,3767.8,3767.7,1.1242846]
[1641233070980,0.16524948,3767.9,3767.7,1.1242846]
[1641233071181,0.16524948,3767.8,3767.7,1.1242846]
[1641233071385,0.39524048,3767.8,3767.7,1.1242846]
[1641233073381,1.58744672,3767.8,3767.7,1.1242846]
[1641233073881,1.35745572,3767.8,3767.7,1.1242846]
[1641233075485,1.19220624,3767.8,3767.7,3.1290746]
[1641233075685,1.19220624,3768.2,3767.7,3.1290746]
[1641233075984,1.19220624,3768.2,3767.7,3.9594746]
[1641233077287,1.19220624,3768.4,3767.7,3.9594746]
[1641233078492,1.19220624,3768.3,3768.0,1.49693067]
[1641233079190,1.19220624,3768.3,3767.9,1.49693067]
[1641233080894,1.19220624,3768.2,3767.9,1.49693067]
[1641233082196,0.229991,3768.1,3767.9,1.49693067]
[1641233082698,1.19220624,3768.2,3767.9,1.49693067]
[1641233083199,0.16548464,3768.0,3767.9,1.49693067]
[1641233083997,1.19220624,3768.2,3767.7,4.62600527]
[1641233084197,0.16548464,3768.3,3767.7,5.24550527]
[1641233084900,1.19220624,3768.4,3767.7,5.24550527]
[1641233085099,0.128157,3768.4,3767.8,1.49693067]
[1641233086504,1.5,3768.0,3767.8,1.49693067]
[1641233086699,0.229991,3767.9,3767.2,2.00479]
[1641233087199,0.229991,3767.9,3767.2,4.95448893]
[1641233087599,0.229991,3767.9,3767.2,5.95960875]
[1641233087999,0.229991,3767.9,3767.8,0.89732802]
[1641233089102,1.42219724,3767.9,3767.2,3.00990982]
[1641233089303,2.92219724,3767.9,3767.2,3.00990982]
[1641233089504,1.5,3767.7,3766.8,2.00479]
[1641233089703,0.128157,3767.6,3766.8,2.00479]
[1641233089903,2.00479,3767.3,3766.7,3.27809865]
[1641233090303,1.5,3767.1,3766.7,3.27809865]
[1641233090504,1.5,3767.1,3766.0,4.95448893]
[1641233090706,1.5,3767.1,3766.5,1.06126493]
[1641233090903,0.743,3767.2,3766.5,1.06126493]
[1641233091104,1.5,3767.1,3766.5,1.06126493]
[1641233091905,2.00479,3766.7,3766.5,1.06126493]
[1641233092106,0.358148,3766.6,3766.5,1.06126493]
[1641233093508,1.858148,3766.6,3765.8,2.94969893]
[1641233093706,0.358148,3766.6,3765.9,1.10886826]
[1641233093907,2.00479,3766.2,3765.9,1.10886826]
[1641233094207,0.229991,3766.1,3765.9,1.10886826]
[1641233096713,1.42219724,3766.1,3765.9,1.10886826]
[1641233097514,1.19220624,3766.0,3765.9,1.10886826]
[1641233100319,1.19220624,3766.0,3765.9,1e-08]
[1641233100521,0.229991,3766.1,3765.9,1.49780313]
[1641233101723,1.42219724,3766.1,3765.9,1e-08]
[1641233103425,0.17518675,3766.0,3765.9,1e-08]
[1641233105627,0.17518675,3766.0,3765.9,1.49780313]
[1641233106526,0.229991,3766.1,3765.9,1.49780313]
[1641233106728,0.229991,3766.1,3765.9,1e-08]
[1641233107626,2.00479,3766.2,3765.9,1e-08]
[1641233108227,30.1188,3767.7,3765.9,1e-08]
[1641233108429,1.5,3767.4,3765.9,1e-08]
[1641233108628,2.00479,3766.2,3765.9,1e-08]
[1641233109131,2.132947,3766.2,3765.9,1e-08]
[1641233109527,2.00479,3766.2,3765.9,1e-08]
[1641233110631,0.229991,3766.1,3765.9,1e-08]
[1641233111031,0.358148,3766.1,3765.9,1e-08]
[1641233111831,1.5,3766.0,3765.9,1e-08]
[1641233113736,1.64981022,3766.0,3765.9,1e-08]
[1641233116339,0.14981022,3766.0,3765.9,1e-08]
[1641233116938,2.132947,3766.2,3765.9,1e-08]
[1641233117138,2.132947,3766.2,3765.9,0.50830001]
[1641233117738,1.5,3766.0,3764.5,0.5833]
[1641233117938,1.5,3765.4,3764.5,0.5833]
[1641233118138,1.5,3765.3,3764.5,0.5833]
[1641233118738,2.00479,3764.8,3764.7,0.88939967]
[1641233118939,2.234781,3764.8,3764.7,0.88939967]
[1641233119742,2.234781,3764.8,3764.6,0.71037075]
[1641233121244,2.00479,3764.8,3764.6,0.71037075]
[1641233123045,2.234781,3764.8,3764.6,0.71037075]
[1641233123345,2.362938,3764.8,3764.6,0.71037075]